[Event "Schack-SM 2023: Mastarklassen"]
[Site "Helsingborg Arena, Mellersta Stenbocksgatan 14, Helsingborg, Sweden"]
[Date "2023.07.07"]
[Round "7.8"]
[White "Liden, Tommy"]
[Black "Carlstrom, Niklas"]
[Result "1-0"]
[TimeControl "90 minutes for 40 moves + 30 minutes for the rest of games + 30 seconds per move from move one."]
[WhiteElo "2107"]
[BlackElo "2125"]

1. e4 {[%clk 01:26:32]} {[%emt 00:04:28]} e6 {[%clk 01:30:47]} {[%emt
00:00:13]} 2. d4 {[%clk 01:26:51]} {[%emt 00:00:11]} d5 {[%clk 01:31:10]}
{[%emt 00:00:07]} 3. e5 {[%clk 01:26:59]} {[%emt 00:00:23]} c5 {[%clk
01:31:32]} {[%emt 00:00:07]} 4. c3 {[%clk 01:27:26]} {[%emt 00:00:04]} Ne7
{[%clk 01:31:35]} {[%emt 00:00:26]} 5. Nf3 {[%clk 01:25:58]} {[%emt 00:01:59]}
Nec6 {[%clk 01:31:42]} {[%emt 00:00:23]} 6. a3 {[%clk 01:24:24]} {[%emt
00:02:04]} c4 {[%clk 01:31:36]} {[%emt 00:00:35]} 7. b3 {[%clk 01:22:58]}
{[%emt 00:01:57]} cxb3 {[%clk 01:31:44]} {[%emt 00:00:21]} 8. Nbd2 {[%clk
01:22:03]} {[%emt 00:01:26]} Na5 {[%clk 01:30:20]} {[%emt 00:01:53]} 9. Nxb3
{[%clk 01:19:54]} {[%emt 00:02:40]} Nxb3 {[%clk 01:22:26]} {[%emt 00:08:24]} 10.
Qxb3 {[%clk 01:20:19]} {[%emt 00:00:05]} Nc6 {[%clk 01:22:37]} {[%emt
00:00:19]} 11. Bb5 {[%clk 01:03:34]} {[%emt 00:17:14]} Bd7 {[%clk 01:16:05]}
{[%emt 00:07:03]} 12. O-O {[%clk 00:58:58]} {[%emt 00:05:06]} Na5 {[%clk
01:11:32]} {[%emt 00:05:02]} 13. Qa4 {[%clk 00:58:03]} {[%emt 00:01:26]} Nc4
{[%clk 01:02:17]} {[%emt 00:09:44]} 14. Ng5 {[%clk 00:48:59]} {[%emt 00:09:34]}
Nb6 {[%clk 01:00:25]} {[%emt 00:02:23]} 15. Bxd7+ {[%clk 00:47:45]} {[%emt
00:01:44]} Qxd7 {[%clk 01:00:36]} {[%emt 00:00:19]} 16. Qxd7+ {[%clk 00:47:10]}
{[%emt 00:01:05]} Nxd7 {[%clk 01:00:56]} {[%emt 00:00:09]} 17. f4 {[%clk
00:47:18]} {[%emt 00:00:23]} g6 {[%clk 00:47:00]} {[%emt 00:14:26]} 18. Rb1
{[%clk 00:46:49]} {[%emt 00:00:59]} Nb6 {[%clk 00:45:34]} {[%emt 00:01:55]} 19.
g4 {[%clk 00:44:04]} {[%emt 00:03:16]} Be7 {[%clk 00:42:59]} {[%emt 00:03:04]}
20. Rf3 {[%clk 00:28:06]} {[%emt 00:16:29]} h6 {[%clk 00:39:13]} {[%emt
00:04:16]} 21. Rh3 {[%clk 00:27:09]} {[%emt 00:01:27]} Rc8 {[%clk 00:34:47]}
{[%emt 00:04:55]} 22. a4 {[%clk 00:17:29]} {[%emt 00:10:11]} Rc7 {[%clk
00:24:58]} {[%emt 00:10:18]} 23. a5 {[%clk 00:17:41]} {[%emt 00:00:18]} Nc4
{[%clk 00:23:45]} {[%emt 00:01:43]} 24. a6 {[%clk 00:17:48]} {[%emt 00:00:24]}
bxa6 {[%clk 00:21:10]} {[%emt 00:03:04]} 25. Rb8+ {[%clk 00:17:21]} {[%emt
00:00:58]} Bd8 {[%clk 00:21:29]} {[%emt 00:00:11]} 26. f5 {[%clk 00:16:58]}
{[%emt 00:00:53]} gxf5 {[%clk 00:13:45]} {[%emt 00:08:13]} 27. gxf5 {[%clk
00:17:07]} {[%emt 00:00:21]} Ke7 {[%clk 00:12:42]} {[%emt 00:01:33]} 28. Nf3
{[%clk 00:07:22]} {[%emt 00:10:15]} a5 {[%clk 00:09:48]} {[%emt 00:03:25]} 29.
Bg5+ {[%clk 00:03:34]} {[%emt 00:04:18]} Kd7 {[%clk 00:10:03]} {[%emt
00:00:15]} 30. fxe6+ {[%clk 00:03:03]} {[%emt 00:01:00]} fxe6 {[%clk 00:10:19]}
{[%emt 00:00:14]} 31. Rxh6 {[%clk 00:02:11]} {[%emt 00:01:23]} Bxg5 {[%clk
00:03:24]} {[%emt 00:07:25]} 32. Rhxh8 {[%clk 00:02:32]} {[%emt 00:00:09]} Bc1
{[%clk 00:03:36]} {[%emt 00:00:17]} 33. Rhd8+ {[%clk 00:01:56]} {[%emt
00:01:07]} Kc6 {[%clk 00:03:54]} {[%emt 00:00:12]} 34. Re8 {[%clk 00:01:42]}
{[%emt 00:00:43]} Rg7+ {[%clk 00:03:06]} {[%emt 00:01:19]} 35. Kf2 {[%clk
00:01:40]} {[%emt 00:00:32]} Rg6 {[%clk 00:02:40]} {[%emt 00:00:56]} 36. Rec8+
{[%clk 00:01:02]} {[%emt 00:01:08]} Kd7 {[%clk 00:03:02]} {[%emt 00:00:08]} 37.
Rc5 {[%clk 00:01:09]} {[%emt 00:00:23]} a4 {[%clk 00:01:37]} {[%emt 00:01:55]}
38. Rb7+ {[%clk 00:01:24]} {[%emt 00:00:14]} Kd8 {[%clk 00:02:00]} {[%emt
00:00:06]} 39. Rxa7 {[%clk 00:01:34]} {[%emt 00:00:22]} a3 {[%clk 00:02:09]}
{[%emt 00:00:21]} 40. h4 {[%clk 00:01:01]} {[%emt 00:01:03]} Be3+ {[%clk
00:01:03]} {[%emt 00:01:35]} 41. Kf1 {[%clk 00:00:41]} {[%emt 00:00:50]} Rg3
{[%clk 00:25:13]} {[%emt 00:06:20]} 42. Ng5 {[%clk 00:27:24]} {[%emt 00:03:48]}
Rg1+ {[%clk 00:23:03]} {[%emt 00:02:39]} 43. Ke2 {[%clk 00:27:41]} {[%emt
00:00:14]} Bxg5 {[%clk 00:22:35]} {[%emt 00:00:58]} 44. Rcc7 {[%clk 00:20:51]}
{[%emt 00:07:20]} a2 {[%clk 00:03:15]} {[%emt 00:19:50]} 45. Rh7 {[%clk
00:17:53]} {[%emt 00:03:28]} Rg2+ {[%clk 00:00:57]} {[%emt 00:02:47]} 46. Kf3
{[%clk 00:17:46]} {[%emt 00:00:37]} 1-0

[ePGN "0.1;DGT LiveChess/2.2.5"]

[Event "Schack-SM 2023: Sverigemastarklassen"]
[Site "Helsingborg Arena, Mellersta Stenbocksgatan 14, Helsingborg, Sweden"]
[Date "2023.07.06"]
[Round "6.1"]
[White "Ernst, Thomas"]
[Black "Johansson, Linus"]
[Result "1/2-1/2"]
[TimeControl "90 minutes for 40 moves + 30 minutes for the rest of the game + 30 seconds per move from move one."]
[WhiteTitle "GM"]
[BlackTitle "IM"]
[WhiteElo "2288"]
[BlackElo "2466"]

1. d4 {[%clk 01:30:56]} {[%emt 00:00:03]} Nf6 {[%clk 01:30:42]} {[%emt
00:00:18]} 2. c4 {[%clk 01:31:18]} {[%emt 00:00:08]} e6 {[%clk 01:31:08]}
{[%emt 00:00:05]} 3. Nc3 {[%clk 01:31:36]} {[%emt 00:00:12]} Bb4 {[%clk
01:30:50]} {[%emt 00:00:48]} 4. Qc2 {[%clk 01:31:56]} {[%emt 00:00:10]} d5
{[%clk 01:28:17]} {[%emt 00:03:04]} 5. cxd5 {[%clk 01:32:03]} {[%emt 00:00:23]}
Qxd5 {[%clk 01:28:34]} {[%emt 00:00:13]} 6. e3 {[%clk 01:30:37]} {[%emt
00:01:55]} O-O {[%clk 01:20:50]} {[%emt 00:08:15]} 7. Nf3 {[%clk 01:27:19]}
{[%emt 00:03:48]} b6 {[%clk 01:16:07]} {[%emt 00:05:13]} 8. Bd3 {[%clk
01:20:40]} {[%emt 00:07:08]} Ba6 {[%clk 01:14:13]} {[%emt 00:02:25]} 9. Bxa6
{[%clk 01:20:37]} {[%emt 00:00:33]} Nxa6 {[%clk 01:14:37]} {[%emt 00:00:07]} 10.
O-O {[%clk 01:20:45]} {[%emt 00:00:22]} Qb7 {[%clk 01:08:43]} {[%emt 00:06:24]}
11. Bd2 {[%clk 01:18:02]} {[%emt 00:03:13]} Rac8 {[%clk 01:00:27]} {[%emt
00:08:46]} 12. a3 {[%clk 01:16:18]} {[%emt 00:02:14]} Bxc3 {[%clk 00:59:28]}
{[%emt 00:01:29]} 13. Bxc3 {[%clk 01:16:04]} {[%emt 00:00:44]} Ne4 {[%clk
00:58:13]} {[%emt 00:01:44]} 14. Nd2 {[%clk 01:12:50]} {[%emt 00:03:44]} Nxd2
{[%clk 00:55:50]} {[%emt 00:02:54]} 15. Qxd2 {[%clk 01:12:41]} {[%emt
00:00:39]} c5 {[%clk 00:55:00]} {[%emt 00:01:19]} 16. Rad1 {[%clk 01:10:17]}
{[%emt 00:02:54]} Rfd8 {[%clk 00:53:18]} {[%emt 00:02:13]} 17. Qe2 {[%clk
01:10:12]} {[%emt 00:00:34]} cxd4 {[%clk 00:52:07]} {[%emt 00:01:41]} 18. Bxd4
{[%clk 01:10:25]} {[%emt 00:00:18]} f6 {[%clk 00:49:39]} {[%emt 00:02:58]} 19.
b4 {[%clk 01:03:49]} {[%emt 00:07:06]} Nb8 {[%clk 00:45:12]} {[%emt 00:04:56]}
20. Qg4 {[%clk 01:01:26]} {[%emt 00:02:51]} Qf7 {[%clk 00:37:32]} {[%emt
00:08:13]} 21. Bb2 {[%clk 00:59:20]} {[%emt 00:02:35]} Rxd1 {[%clk 00:34:45]}
{[%emt 00:03:18]} 22. Rxd1 {[%clk 00:59:26]} {[%emt 00:00:23]} Nd7 {[%clk
00:35:00]} {[%emt 00:00:15]} 23. h3 {[%clk 00:57:02]} {[%emt 00:02:53]} Nf8
{[%clk 00:35:03]} {[%emt 00:00:28]} 24. Rd2 {[%clk 00:55:20]} {[%emt 00:02:11]}
Qe7 {[%clk 00:33:53]} {[%emt 00:01:41]} 25. Qf3 {[%clk 00:46:55]} {[%emt
00:08:54]} Qc7 {[%clk 00:33:29]} {[%emt 00:00:56]} 26. Qd1 {[%clk 00:45:15]}
{[%emt 00:02:10]} h6 {[%clk 00:31:36]} {[%emt 00:02:24]} 27. Kh1 {[%clk
00:40:46]} {[%emt 00:04:57]} Qc4 {[%clk 00:28:46]} {[%emt 00:03:22]} 28. Kg1
{[%clk 00:40:12]} {[%emt 00:01:04]} e5 {[%clk 00:26:53]} {[%emt 00:02:23]} 29.
Qg4 {[%clk 00:37:38]} {[%emt 00:03:00]} Qxg4 {[%clk 00:23:27]} {[%emt
00:04:01]} 30. hxg4 {[%clk 00:38:00]} {[%emt 00:00:08]} Kf7 {[%clk 00:23:52]}
{[%emt 00:00:05]} 31. Kf1 {[%clk 00:37:27]} {[%emt 00:01:01]} Ke6 {[%clk
00:24:00]} {[%emt 00:00:23]} 32. Ke2 {[%clk 00:34:45]} {[%emt 00:03:12]} b5
{[%clk 00:23:14]} {[%emt 00:01:17]} 33. e4 {[%clk 00:26:38]} {[%emt 00:08:35]}
Nd7 {[%clk 00:19:07]} {[%emt 00:04:39]} 34. Kd3 {[%clk 00:26:45]} {[%emt
00:00:21]} Kf7 {[%clk 00:06:03]} {[%emt 00:13:36]} 35. Rc2 {[%clk 00:25:40]}
{[%emt 00:01:33]} Rxc2 {[%clk 00:06:27]} {[%emt 00:00:08]} 36. Kxc2 {[%clk
00:26:06]} {[%emt 00:00:04]} Kg6 {[%clk 00:06:41]} {[%emt 00:00:15]} 37. Bc1
{[%clk 00:25:21]} {[%emt 00:01:14]} h5 {[%clk 00:07:01]} {[%emt 00:00:11]} 38.
gxh5+ {[%clk 00:24:21]} {[%emt 00:01:30]} Kxh5 {[%clk 00:07:26]} {[%emt
00:00:05]} 39. Be3 {[%clk 00:24:02]} {[%emt 00:00:48]} a6 {[%clk 00:06:57]}
{[%emt 00:01:00]} 40. f3 {[%clk 00:22:24]} {[%emt 00:02:05]} Nf8 {[%clk
00:06:54]} {[%emt 00:00:35]} 41. Kd3 {[%clk 00:18:40]} {[%emt 00:04:13]} Ne6
{[%clk 00:07:00]} {[%emt 00:00:25]} 42. Ke2 {[%clk 00:09:42]} {[%emt 00:09:27]}
Nd8 {[%clk 00:07:17]} {[%emt 00:00:14]} 43. Kf2 {[%clk 00:08:25]} {[%emt
00:01:47]} Nb7 {[%clk 00:03:49]} {[%emt 00:03:59]} 44. g4+ {[%clk 00:05:54]}
{[%emt 00:03:00]} Kg6 {[%clk 00:04:12]} {[%emt 00:00:07]} 45. Ke2 {[%clk
00:05:49]} {[%emt 00:00:34]} Nd6 {[%clk 00:04:26]} {[%emt 00:00:16]} 46. Kd3
{[%clk 00:05:55]} {[%emt 00:00:24]} Kf7 {[%clk 00:04:37]} {[%emt 00:00:20]} 47.
Kc3 {[%clk 00:05:39]} {[%emt 00:00:44]} Kg6 {[%clk 00:28:53]} {[%emt 00:06:16]}
48. Kd3 {[%clk 00:35:35]} {[%emt 00:00:33]} Nf7 {[%clk 00:29:17]} {[%emt
00:00:07]} 49. Ke2 {[%clk 00:34:45]} {[%emt 00:01:19]} Ng5 {[%clk 00:29:19]}
{[%emt 00:00:29]} 50. Kf2 {[%clk 00:34:25]} {[%emt 00:00:48]} Ne6 {[%clk
00:29:39]} {[%emt 00:00:13]} 51. Kg3 {[%clk 00:33:09]} {[%emt 00:01:43]} Kf7
{[%clk 00:29:44]} {[%emt 00:00:28]} 52. Kf2 {[%clk 00:33:13]} {[%emt 00:00:24]}
Nf8 {[%clk 00:29:07]} {[%emt 00:01:08]} 53. g5 {[%clk 00:29:45]} {[%emt
00:03:57]} Ke6 {[%clk 00:24:58]} {[%emt 00:04:41]} 54. gxf6 {[%clk 00:30:02]}
{[%emt 00:00:13]} gxf6 {[%clk 00:25:23]} {[%emt 00:00:05]} 55. Ke2 {[%clk
00:29:51]} {[%emt 00:00:41]} Ng6 {[%clk 00:25:12]} {[%emt 00:00:41]} 56. Kd3
{[%clk 00:29:40]} {[%emt 00:00:41]} f5 {[%clk 00:24:43]} {[%emt 00:00:59]} 57.
exf5+ {[%clk 00:29:34]} {[%emt 00:00:35]} Kxf5 {[%clk 00:25:08]} {[%emt
00:00:06]} 58. Ke2 {[%clk 00:25:23]} {[%emt 00:04:39]} Nh8 {[%clk 00:23:28]}
{[%emt 00:02:12]} 59. Kd3 {[%clk 00:25:23]} {[%emt 00:00:29]} Nf7 {[%clk
00:23:45]} {[%emt 00:00:14]} 60. Bd2 {[%clk 00:22:50]} {[%emt 00:03:00]} Nd6
{[%clk 00:23:39]} {[%emt 00:00:40]} 61. Bc1 {[%clk 00:22:47]} {[%emt 00:00:32]}
Nf7 {[%clk 00:20:31]} {[%emt 00:03:39]} 62. Bd2 {[%clk 00:22:52]} {[%emt
00:00:24]} Nd8 {[%clk 00:20:10]} {[%emt 00:00:52]} 63. Be3 {[%clk 00:22:29]}
{[%emt 00:00:52]} Nc6 {[%clk 00:20:30]} {[%emt 00:00:11]} 64. Bd2 {[%clk
00:21:32]} {[%emt 00:01:27]} Ne7 {[%clk 00:20:27]} {[%emt 00:00:33]} 65. Be3
{[%clk 00:17:17]} {[%emt 00:04:44]} Ng6 {[%clk 00:20:53]} {[%emt 00:00:05]} 66.
Ke2 {[%clk 00:16:51]} {[%emt 00:00:55]} Ke6 {[%clk 00:20:23]} {[%emt 00:01:01]}
67. Bg5 {[%clk 00:16:34]} {[%emt 00:00:44]} Kd5 {[%clk 00:20:34]} {[%emt
00:00:22]} 68. Kd3 {[%clk 00:16:56]} {[%emt 00:00:08]} Nh8 {[%clk 00:19:23]}
{[%emt 00:01:40]} 69. Be3 {[%clk 00:15:50]} {[%emt 00:01:34]} Nf7 {[%clk
00:19:39]} {[%emt 00:00:17]} 70. Bd2 {[%clk 00:15:10]} {[%emt 00:01:08]} Nd6
{[%clk 00:19:56]} {[%emt 00:00:15]} 71. Be3 {[%clk 00:14:32]} {[%emt 00:01:03]}
Nf5 {[%clk 00:18:58]} {[%emt 00:01:34]} 72. Bf2 {[%clk 00:14:40]} {[%emt
00:00:19]} Ng7 {[%clk 00:19:23]} {[%emt 00:00:08]} 73. Bg1 {[%clk 00:13:35]}
{[%emt 00:01:32]} Ne8 {[%clk 00:18:17]} {[%emt 00:01:39]} 74. Bf2 {[%clk
00:13:28]} {[%emt 00:00:35]} Nd6 {[%clk 00:13:27]} {[%emt 00:05:22]} 75. Be3
{[%clk 00:13:24]} {[%emt 00:00:35]} Nf5 {[%clk 00:12:18]} {[%emt 00:01:39]} 76.
Bf2 {[%clk 00:13:40]} {[%emt 00:00:12]} Ke6 {[%clk 00:12:44]} {[%emt 00:00:06]}
77. Bb6 {[%clk 00:11:54]} {[%emt 00:02:09]} Kd6 {[%clk 00:12:14]} {[%emt
00:01:07]} 78. Ke4 {[%clk 00:10:40]} {[%emt 00:01:40]} Ng3+ {[%clk 00:12:40]}
{[%emt 00:00:08]} 79. Kd3 {[%clk 00:10:54]} {[%emt 00:00:15]} Kd5 {[%clk
00:12:42]} {[%emt 00:00:29]} 80. Be3 {[%clk 00:10:26]} {[%emt 00:00:55]} Nh5
{[%clk 00:07:57]} {[%emt 00:05:19]} 81. Bd2 {[%clk 00:10:25]} {[%emt 00:00:29]}
Kd6 {[%clk 00:08:19]} {[%emt 00:00:10]} 82. Ke4 {[%clk 00:09:10]} {[%emt
00:01:42]} Nf6+ {[%clk 00:08:35]} {[%emt 00:00:16]} 83. Kf5 {[%clk 00:08:02]}
{[%emt 00:01:37]} Nd5 {[%clk 00:08:46]} {[%emt 00:00:21]} 84. Bc1 {[%clk
00:07:15]} {[%emt 00:01:16]} Nb6 {[%clk 00:08:05]} {[%emt 00:01:12]} 85. Ke4
{[%clk 00:07:20]} {[%emt 00:00:23]} Ke6 {[%clk 00:07:01]} {[%emt 00:01:36]} 86.
f4 {[%clk 00:07:14]} {[%emt 00:00:34]} exf4 {[%clk 00:07:25]} {[%emt 00:00:07]}
87. Bxf4 {[%clk 00:07:37]} {[%emt 00:00:07]} Nc4 {[%clk 00:07:45]} {[%emt
00:00:10]} 88. Bc1 {[%clk 00:07:59]} {[%emt 00:00:08]} a5 {[%clk 00:08:00]}
{[%emt 00:00:15]} 89. bxa5 {[%clk 00:08:19]} {[%emt 00:00:11]} Nxa5 {[%clk
00:08:26]} {[%emt 00:00:04]} 90. Bd2 {[%clk 00:08:04]} {[%emt 00:00:44]} Nc4
{[%clk 00:08:51]} {[%emt 00:00:05]} 91. Bb4 {[%clk 00:08:27]} {[%emt 00:00:06]}
Nxa3 {[%clk 00:09:19]} {[%emt 00:00:04]} 92. Bxa3 {[%clk 00:08:49]} {[%emt
00:00:08]} b4 {[%clk 00:09:46]} {[%emt 00:00:02]} 93. Bxb4 {[%clk 00:09:13]}
{[%emt 00:00:06]} 1/2-1/2

[Event "Schack-SM 2023: Junior-SM"]
[Site "Helsingborg Arena, Mellersta Stenbocksgatan 14, Helsingborg, Sweden"]
[Date "2023.07.06"]
[Round "6.3"]
[White "Falkevall, Axel"]
[Black "Joensson, Oscar"]
[Result "1-0"]
[TimeControl "90 minutes for 40 moves + 30 minutes for the rest of the game + 30 seconds per move from move one."]
[WhiteTitle "FM"]
[WhiteElo "2311"]
[BlackElo "2077"]

1. e4 {[%clk 01:30:58]} c6 {[%clk 01:30:55]} {[%emt 00:00:06]} 2. d4 {[%clk
01:31:23]} {[%emt 00:00:05]} d5 {[%clk 01:31:21]} {[%emt 00:00:03]} 3. e5
{[%clk 01:31:50]} {[%emt 00:00:04]} c5 {[%clk 01:31:48]} {[%emt 00:00:03]} 4.
dxc5 {[%clk 01:32:16]} {[%emt 00:00:04]} e6 {[%clk 01:32:14]} {[%emt 00:00:04]}
5. a3 {[%clk 01:32:37]} {[%emt 00:00:09]} Bxc5 {[%clk 01:32:38]} {[%emt
00:00:06]} 6. Qg4 {[%clk 01:33:00]} {[%emt 00:00:07]} Kf8 {[%clk 01:31:39]}
{[%emt 00:01:30]} 7. Bd3 {[%clk 01:31:10]} {[%emt 00:02:19]} Nc6 {[%clk
01:29:59]} {[%emt 00:02:10]} 8. Nf3 {[%clk 01:30:11]} {[%emt 00:01:30]} Qc7
{[%clk 01:21:06]} {[%emt 00:09:22]} 9. Qg3 {[%clk 01:24:30]} {[%emt 00:06:11]}
Nge7 {[%clk 01:16:03]} {[%emt 00:05:33]} 10. O-O {[%clk 01:21:33]} {[%emt
00:03:26]} Nf5 {[%clk 01:14:14]} {[%emt 00:02:20]} 11. Bxf5 {[%clk 01:20:10]}
{[%emt 00:01:53]} exf5 {[%clk 01:14:39]} {[%emt 00:00:06]} 12. Bf4 {[%clk
01:11:32]} {[%emt 00:09:08]} Be6 {[%clk 01:13:44]} {[%emt 00:01:24]} 13. Nbd2
{[%clk 01:10:57]} {[%emt 00:01:06]} h6 {[%clk 00:50:53]} {[%emt 00:23:20]} 14.
h4 {[%clk 01:05:26]} {[%emt 00:06:02]} a6 {[%clk 00:45:09]} {[%emt 00:06:13]}
15. Nb3 {[%clk 01:01:43]} {[%emt 00:04:14]} Ba7 {[%clk 00:42:34]} {[%emt
00:03:05]} 16. c3 {[%clk 00:58:48]} {[%emt 00:03:24]} g6 {[%emt 00:16:56]} 17.
Nfd4 {[%clk 00:42:02]} {[%emt 00:04:18]} Kg7 {[%clk 00:35:00]} {[%emt
00:04:36]} 18. Rad1 {[%clk 00:39:26]} {[%emt 00:03:06]} Qe7 {[%emt 00:13:05]}
19. Be3 {[%clk 00:31:48]} {[%emt 00:03:28]} Bxd4 {[%clk 00:20:20]} 20. Bxd4
{[%clk 00:30:18]} Nxd4 21. Nxd4 {[%clk 00:23:44]} {[%emt 00:01:09]} Rhc8 22.
Nc2 {[%emt 00:13:31]} Rd8 {[%clk 00:12:17]} {[%emt 00:01:36]} 23. Rd4 {[%clk
00:21:23]} {[%emt 00:02:30]} Rd7 {[%clk 00:10:54]} 24. Rfd1 Rad8 {[%clk
00:10:38]} 25. Qe3 {[%clk 00:15:58]} Kh7 26. g3 {[%emt 00:14:56]} Qc5 {[%emt
00:04:25]} 27. R4d2 {[%emt 00:01:15]} Qc7 {[%emt 00:00:55]} 28. f4 {[%clk
00:08:32]} {[%emt 00:03:19]} h5 {[%clk 00:05:52]} {[%emt 00:00:16]} 29. Rd4
{[%emt 00:03:18]} b6 {[%clk 00:04:29]} {[%emt 00:00:13]} 30. Qe2 {[%clk
00:07:01]} {[%emt 00:00:54]} Qb7 {[%clk 00:04:42]} {[%emt 00:00:17]} 31. R1d2
{[%emt 00:01:22]} Kg7 {[%clk 00:04:55]} {[%emt 00:00:09]} 32. Kh2 {[%clk
00:06:19]} {[%emt 00:04:16]} Kf8 {[%clk 00:03:07]} {[%emt 00:00:29]} 33. Nb4
{[%clk 00:05:00]} {[%emt 00:01:50]} a5 {[%clk 00:01:33]} {[%emt 00:02:04]} 34.
Nc2 {[%emt 00:01:27]} Rc8 35. Ne3 {[%clk 00:04:43]} {[%emt 00:00:06]} Rc5
{[%clk 00:01:53]} {[%emt 00:00:23]} 36. Qd3 {[%clk 00:04:17]} {[%emt 00:00:57]}
Qc6 {[%clk 00:01:57]} {[%emt 00:00:26]} 37. Qe2 {[%clk 00:03:27]} {[%emt
00:01:20]} Ke8 {[%clk 00:00:51]} {[%emt 00:01:36]} 38. Qd1 {[%clk 00:02:10]}
{[%emt 00:01:47]} Qb7 {[%clk 00:00:53]} {[%emt 00:00:26]} 39. Nc2 {[%clk
00:29:19]} {[%emt 00:03:22]} b5 {[%clk 00:21:34]} {[%emt 00:09:50]} 40. R2d3
{[%clk 00:26:28]} {[%emt 00:03:21]} Rc4 {[%clk 00:16:54]} {[%emt 00:05:10]} 41.
Ne3 {[%clk 00:23:17]} {[%emt 00:03:41]} Rxd4 {[%clk 00:10:59]} {[%emt
00:06:26]} 42. Rxd4 {[%clk 00:23:34]} {[%emt 00:00:13]} a4 {[%clk 00:08:34]}
{[%emt 00:02:55]} 43. Qd3 {[%clk 00:22:09]} {[%emt 00:01:55]} Qc6 {[%clk
00:08:15]} {[%emt 00:00:49]} 44. Kg1 {[%clk 00:20:13]} {[%emt 00:02:25]} Qc5
{[%clk 00:06:47]} {[%emt 00:01:59]} 45. Kf2 {[%clk 00:16:24]} {[%emt 00:04:19]}
Kd8 {[%clk 00:06:56]} {[%emt 00:00:21]} 46. Nc2 {[%emt 00:01:12]} Kc7 {[%clk
00:05:54]} {[%emt 00:00:59]} 47. Qe3 {[%clk 00:15:06]} {[%emt 00:01:38]} Kc8
{[%clk 00:03:43]} {[%emt 00:02:42]} 48. Rb4 {[%clk 00:13:25]} {[%emt 00:02:11]}
Qxe3+ {[%clk 00:02:13]} {[%emt 00:01:59]} 49. Kxe3 {[%clk 00:13:42]} {[%emt
00:00:14]} Rb7 {[%clk 00:02:39]} {[%emt 00:00:04]} 50. Kd4 {[%clk 00:13:07]}
{[%emt 00:01:04]} Kc7 {[%clk 00:00:43]} {[%emt 00:02:26]} 51. Kc5 {[%clk
00:12:51]} {[%emt 00:00:46]} Bd7 {[%clk 00:00:32]} {[%emt 00:00:42]} 52. Kxd5
{[%clk 00:12:11]} {[%emt 00:01:10]} Kb6 {[%clk 00:00:40]} {[%emt 00:00:22]} 53.
Kd4 {[%clk 00:07:59]} {[%emt 00:04:41]} Be6 {[%clk 00:00:51]} {[%emt 00:00:19]}
54. Ke3 {[%clk 00:07:47]} {[%emt 00:00:42]} Bc4 {[%clk 00:01:14]} {[%emt
00:00:07]} 55. Nd4 {[%clk 00:06:53]} {[%emt 00:01:24]} Rd7 {[%clk 00:01:35]}
{[%emt 00:00:10]} 56. Nxb5 {[%clk 00:04:14]} {[%emt 00:03:09]} Rd3+ {[%clk
00:01:16]} {[%emt 00:00:48]} 57. Kf2 {[%clk 00:04:21]} {[%emt 00:00:24]} Bxb5
{[%clk 00:01:17]} {[%emt 00:00:29]} 58. c4 {[%clk 00:04:44]} {[%emt 00:00:06]}
Rd4 {[%clk 00:01:29]} {[%emt 00:00:18]} 59. Rxb5+ {[%emt 00:00:46]} Kc6 {[%clk
00:01:46]} {[%emt 00:00:10]} 60. Rb4 {[%clk 00:04:35]} {[%emt 00:00:26]} Kc5
{[%clk 00:01:30]} {[%emt 00:00:47]} 61. Ke3 {[%clk 00:03:52]} {[%emt 00:01:12]}
Rxc4 {[%clk 00:01:04]} {[%emt 00:00:57]} 62. Rxc4+ {[%emt 00:00:27]} Kxc4
{[%clk 00:01:28]} {[%emt 00:00:04]} 63. Kd2 {[%emt 00:00:12]} Kd4 {[%clk
00:01:49]} {[%emt 00:00:03]} 64. Kc2 {[%emt 00:00:24]} Kc4 {[%emt 00:00:30]} 65.
b3+ {[%emt 00:00:51]} 1-0